Cogmind - Beta 15 @@@ ROGUE MODE // 2025.05.31 @ 09:08:14 Player: Easy Game Result: Destroyed self with Rocket Launcher Performance ------------- Evolutions (1) 500 Regions Visited (3) 600 Robots Destroyed (41) 205 Value Destroyed (961) 961 Prototype IDs (0) 0 Alien Tech Used (0) 0 Bonus (46) 46 TOTAL SCORE: 2312 Bonus ------- High Alert Combat Kills 46 Cogmind --------- Core Integrity 0/400 Matter 150/300 Energy 385/390 System Corruption 3% Temperature Warm (149) Movement Rolling (155) Ox5 Location -9/Mines Parts ------- > --- POWER (2) -------- Ion Engine Nuclear Core > --- PROPULSION (2) --- Wheel Wheel > --- UTILITY (2) ------ Huge Storage Unit > --- WEAPON (3) ------- Heavy Assault Cannon > --- INVENTORY (25) --- Wheel Wheel Huge Storage Unit Huge Storage Unit Huge Storage Unit Huge Storage Unit Medium Matter Pod (0) Medium Matter Pod (0) EMP Blaster Peak State ------------ > --- POWER ------------ Ion Engine Nuclear Core > --- PROPULSION ------- Wheel Wheel > --- UTILITY ---------- Huge Storage Unit Medium Armor Plating > --- WEAPON ----------- Heavy Assault Cannon Rocket Launcher > --- INVENTORY -------- Wheel Wheel Huge Storage Unit Huge Storage Unit Huge Storage Unit Huge Storage Unit Medium Matter Pod Medium Matter Pod EMP Blaster [Rating: 18] Favorites ----------- Power Ion Engine Engine Ion Engine Power Core Nuclear Core Propulsion Wheel Leg Aluminum Leg Wheel Wheel Utility Huge Storage Unit Storage Huge Storage Unit Processor Improved Targeting Computer Protection Hardened Light Armor Plating Weapon Grenade Launcher Energy Gun Spread Laser Ballistic Gun Minigun Ballistic Cannon Heavy Assault Cannon Launcher Grenade Launcher Build | -11 -10 -9 -9 ------- Run | Yrd Mat Mat Min Slots Evolved 2 | . . 2 . Power 1 | . . 1 . Propulsion . | . . . . Utility . | . . . . Weapon 1 | . . 1 . Parts Attached 28 | 8 5 14 1 Power 4 | 2 . 2 . Engine 3 | 2 . 1 . Core 1 | . . 1 . Reactor . | . . . . Propulsion 8 | 4 1 3 . Treads . | . . . . Leg 2 | 2 . . . Wheel 6 | 2 1 3 . Hover . | . . . . Flight . | . . . . Utility 5 | . 2 3 . Device . | . . . . Storage 2 | . 1 1 . Processor 1 | . . 1 . Hackware . | . . . . Protection 2 | . 1 1 . Artifact . | . . . . Weapon 11 | 2 2 6 1 Energy Gun 3 | 1 . 2 . Energy Cannon . | . . . . Ballistic Gun 3 | 1 1 1 . Ballistic Cannon 1 | . . 1 . Launcher 4 | . 1 2 1 Special Weapon . | . . . . Impact Weapon . | . . . . Slashing Weapon . | . . . . Piercing Weapon . | . . . . Special Melee Weapon . | . . . . Unidentified Prototypes . | . . . . Corrupted Parts 1 | . . 1 . System Corruption 3 | . . 3 . Parts Lost 12 | . . 10 2 Power 2 | . . 2 . Propulsion 2 | . . 2 . Utility 2 | . . 1 1 Weapon 6 | . . 5 1 Highest Loss Streak 6 | . . 6 2 To Critical Strikes . | . . . . Average Backups 5 | 4 2 6 9 Power . | 1 . . . Propulsion . | 1 . . 2 Utility 3 | . . 4 6 Weapon 1 | . 1 1 1 Tool/Special . | . . . . Unused Backups 12 | . 6 1 5 Power 1 | . 1 . . Propulsion 3 | . 1 1 1 Utility 7 | . 3 . 4 Weapon 1 | . 1 . . Tool/Special . | . . . . Average Slot Usage (%) 68 | . 82 63 85 Engine 10 | . 14 10 11 Core 2 | . . 2 11 Wheel 14 | . 28 10 22 Storage 10 | . 8 11 11 Protection 7 | . 2 8 10 Energy Gun 3 | . 2 4 . Ballistic Gun 7 | . 14 6 . Ballistic Cannon 1 | . . 1 11 Launcher 9 | . 11 9 8 Peak Build Rating 18 | 5 9 16 18 Average Rating 8 | 4 6 9 17 On Entrance 7 | . 5 9 16 Naked Turns . | . . . . Heaviest Build 115 | 9 21 111 115 Greatest Support 20 | 20 20 20 20 Greatest Overweight (x) 33 | . 1 33 5 Average Overweight (x) 3 | . . 6 5 Largest Inventory Capacity 25 | 5 8 25 25 Average Capacity 17 | 5 6 22 25 Most Carried 12 | 5 5 12 10 Average Carried 5 | 4 1 6 9 Final Capacity 25 | 5 8 25 25 Final Carried 9 | 5 2 9 9 Class Distribution -------------------- 66% | Mutant 24% | Bomber 8% | Tank Dominant Class ---------------- Mutant | -10/Materials Mutant | -9/Materials Bomber | -9/Mines Resources | -11 -10 -9 -9 ----------- Run | Yrd Mat Mat Min Matter Collected 1086 | 295 49 742 . Remotely . | . . . . Salvage Created 1198 | 53 49 1065 31 Parts 73 | 3 10 58 2 Haulers Intercepted 2 | . . 2 . Recyclers Shooed 3 | . . 3 . Parts Field Recycled . | . . . . Retrieved Matter . | . . . . Parts Self-Destructed . | . . . . Prevented . | . . . . Kills | -11 -10 -9 -9 ------- Run | Yrd Mat Mat Min Combat Hostiles Destroyed 26 | 1 3 21 1 Guns 4 | 1 . 3 . Cannons 2 | . . 2 . AOE 20 | . 3 16 1 Classes Destroyed 9 | 2 1 6 . Worker 8 | 1 1 6 . Builder 1 | . . 1 . Hauler 2 | . . 2 . Recycler 2 | . . 2 . Watcher 2 | . . 2 . Swarmer 6 | . 3 3 . Grunt 15 | 1 . 13 1 Duelist 1 | . . 1 . Sentry 4 | . . 4 . Best Kill Streak 8 | 1 3 8 1 Combat Bots Only 3 | 1 3 3 1 Max Kills in Single Turn 3 | 1 3 3 1 Gunslinging . | . . . . Exploded 3 | . 3 2 1 Melee . | . . . . Uniques/NPCs Destroyed . | . . . . Combat | -11 -10 -9 -9 -------- Run | Yrd Mat Mat Min Hostile Shots Fired 171 | 4 1 151 15 Missed 50 | . 1 46 3 Hits 121 | 4 . 105 12 Melee 2 | . . . 2 Projectile 119 | 4 . 105 10 Critical Strikes 4 | . . 3 1 Damage Taken 1749 | 43 . 1507 199 Core 417 | 11 . 363 43 Absorbed by Shields . | . . . . Core Remaining (%) 95 | 95 95 . . Volleys Fired 80 | 5 21 48 6 Largest 3 | 2 2 3 2 Hottest 88 | 60 60 88 83 Shots Fired 146 | 10 24 100 12 Gun 73 | 10 22 41 . Cannon 15 | . . 9 6 Launcher 58 | . 2 50 6 Special . | . . . . Kinetic 81 | 5 21 49 6 Thermal 1 | . . 1 . Explosive 31 | . 2 23 6 Electromagnetic 33 | 5 1 27 . Robot Hit Streak 9 | 2 4 9 2 Robot Miss Streak 4 | 2 1 3 4 Penetration Max . | . . . . Secondary Targets . | . . . . Shots Hit Robots 54 | 4 8 40 2 Core Hits 60 | 2 4 51 3 Critical Kills . | . . . . Critical Parts Destroyed . | . . . . Critical Strikes 1 | . . . 1 Blast 1 | . . . 1 Melee Attacks . | . . . . Impact . | . . . . Slashing . | . . . . Piercing . | . . . . Sneak Attacks . | . . . . Combat Hostiles . | . . . . Follow-up Attacks . | . . . . Damage Inflicted 2571 | 54 212 2131 174 Guns 447 | 54 102 291 . Cannons 425 | . . 380 45 Explosions 1699 | . 110 1460 129 Melee . | . . . . Ramming . | . . . . Kinetic 831 | 27 102 657 45 Thermal 14 | . . 14 . Explosive 998 | . 110 759 129 Electromagnetic 728 | 27 . 701 . Impact . | . . . . Slashing . | . . . . Piercing . | . . . . Highest Corruption 3 | . 1 3 3 Average Corruption 2 | . 1 3 3 Corruption Purged . | . . . . Corruption Blocked . | . . . . Effects 6 | . . 4 2 Message Errors 1 | . . 1 . Heat Flow Errors 2 | . . 2 . Energy Discharges 1 | . . . 1 Data Loss (minor) 1 | . . . 1 Misfires 1 | . . 1 . Overload Shots . | . . . . Overflow Damage 104 | . . 79 25 Projectiles 10 | . . 10 . Explosions 94 | . . 69 25 Melee . | . . . . Knockbacks . | . . . . Impact . | . . . . Kinetic . | . . . . Secondary . | . . . . Self-Inflicted Damage 188 | . . 143 45 Shots 9 | . . 8 1 Rammed 1 | . 1 . . Targets Rammed 1 | . 1 . . Kicked . | . . . . Crushed . | . . . . Highest Temperature 240 | 24 22 240 165 Average Temperature 59 | 16 9 59 107 Received Heat Transfer 627 | 24 . 579 24 Siege Activations . | . . . . Martial Activations . | . . . . Shielding Activations . | . . . . Robots Disrupted . | . . . . Combat Hostiles . | . . . . Robots Corrupted . | . . . . Combat Hostiles . | . . . . Parts Fried 1 | . . 1 . Impact Corruptions . | . . . . Robots Melted . | . . . . Combat Hostiles . | . . . . Parts Melted . | . . . . Heat Transferred 15 | . . 15 . Parts Sabotaged . | . . . . Parts Stolen . | . . . . Parts Stripped . | . . . . Power Chain Reactions . | . . . . Alert | -11 -10 -9 -9 ------- Run | Yrd Mat Mat Min Maximum Alert Level 2 | . . 2 . Low Security (%) 56 | 100 100 25 100 Level 1 35 | . . 59 . Level 2 8 | . . 14 . Level 3 . | . . . . Level 4 . | . . . . Level 5 . | . . . . High Security . | . . . . Max Security . | . . . . Peak Influence 479 | 20 82 479 137 Initial 115 | . . 29 115 Average 167 | . 10 267 92 Influence Increases 1065 | 25 143 795 102 Destroy 0b10 Robot/C 520 | 20 60 420 20 Destroy 0b10 Robot/NC 75 | 5 5 65 . Destroy Leader 118 | . 10 108 . Successful Hack 2 | . 2 . . Disable Machine 135 | . 15 60 60 Destroy Structure 185 | . 21 142 22 Lose Combat Pursuer 30 | . 30 . . Influence Decreases 938 | 25 71 570 272 Entered New Map 225 | . . 43 182 Time Decay 576 | 25 71 410 70 Lost Part 120 | . . 100 20 Purge Threat 17 | . . 17 . Squads Dispatched 3 | . . 3 . Investigation 2 | . . 2 . Extermination . | . . . . Reinforcement 1 | . . 1 . Assault . | . . . . Garrison . | . . . . Intercept . | . . . . Searches Triggered . | . . . . Construction Impeded . | . . . . Haulers Reinforced . | . . . . Active Scanning Responses . | . . . . Cargo Convoy Interrupts . | . . . . Stealth | -11 -10 -9 -9 --------- Run | Yrd Mat Mat Min Distress Signals 5 | . 1 4 . Communications Jammed . | . . . . Distress Signals . | . . . . Times Spotted 44 | 1 6 34 3 Peak Tracking Total 6 | 1 4 6 5 Tactical Retreats 1 | . 1 . . Traps | -11 -10 -9 -9 ------- Run | Yrd Mat Mat Min Traps Triggered 2 | . 1 1 . Indirectly . | . . . . Trap Hack Attempts . | . . . . Triggered . | . . . . Disarmed . | . . . . Reprogrammed . | . . . . Reused . | . . . . Traps Extracted . | . . . . Installed . | . . . . Triggered . | . . . . Machines | -11 -10 -9 -9 ---------- Run | Yrd Mat Mat Min Machines Disabled 11 | . 1 6 4 Max in Single Turn 3 | . 1 2 3 Machines Repaired . | . . . . Machines Dismantled . | . . . . Machines Sabotaged . | . . . . Overloaded Fab Kills . | . . . . Hacking | -11 -10 -9 -9 --------- Run | Yrd Mat Mat Min Machines Accessed 3 | . 1 2 . Terminals 2 | . 1 1 . Fabricators . | . . . . Repair Stations 1 | . . 1 . Recycling Units . | . . . . Scanalyzers . | . . . . Garrison Access . | . . . . Total Hacks 6 | . 2 4 . Successful 3 | . 1 2 . Failed 3 | . 1 2 . Catastrophic 1 | . 1 . . Database Lockouts . | . . . . Manual . | . . . . Terminals 3 | . 2 1 . Fabricators . | . . . . Repair Stations 3 | . . 3 . Recycling Units . | . . . . Scanalyzers . | . . . . Garrison Access . | . . . . Terminal Hacks 2 | . 1 1 . Record 1 | . 1 . . Unreport Threat 1 | . . 1 . Fabricator Hacks . | . . . . Repair Station Hacks 1 | . . 1 . Refit 1 | . . 1 . Recycling Unit Hacks . | . . . . Scanalyzer . | . . . . Garrison Access Hacks . | . . . . Unauthorized Hacks . | . . . . Terminals . | . . . . Fabricators . | . . . . Repair Stations . | . . . . Recycling Units . | . . . . Scanalyzers . | . . . . Garrison Access . | . . . . Data Cores Recovered . | . . . . Used . | . . . . Hacking Detections 2 | . 1 1 . Full Trace Events . | . . . . Feedback Events . | . . . . Feedback Blocked . | . . . . Robot Schematics Acquired . | . . . . Robots Built . | . . . . Authchips . | . . . . Time . | . . . . Total Robot Build Rating . | . . . . Part Schematics Acquired . | . . . . Parts Built . | . . . . Authchips . | . . . . Time . | . . . . Total Part Build Rating . | . . . . Parts Repaired . | . . . . Time . | . . . . Parts Recycled . | . . . . Recycled Matter . | . . . . Retrieved Matter . | . . . . Retrieved Components . | . . . . Parts Scanalyzed . | . . . . Part Schematics Acquired . | . . . . Parts Damaged . | . . . . Bothacking | -11 -10 -9 -9 ------------ Run | Yrd Mat Mat Min Used RIF Installer . | . . . . Robots Hacked . | . . . . Non-combat . | . . . . Combat . | . . . . Robot Hacks Applied . | . . . . Relay Couplers Released . | . . . . Fabnet Peak Effective % . | . . . . Robots Rewired . | . . . . Allies Hacked . | . . . . Hacks Repelled . | . . . . Allies | -11 -10 -9 -9 -------- Run | Yrd Mat Mat Min Total Allies . | . . . . Largest Group . | . . . . Highest-Rated Group . | . . . . Highest-Rated Ally . | . . . . Total Orders . | . . . . Ally Attacks . | . . . . Total Damage . | . . . . Kills . | . . . . Allies Corrupted . | . . . . Allies Melted . | . . . . Intel | -11 -10 -9 -9 ------- Run | Yrd Mat Mat Min Active Infowar (turns) . | . . . . Robot Analysis Total . | . . . . Derelict Logs Recovered . | . . . . Drone Launches . | . . . . Drone Recoveries . | . . . . Exploration | -11 -10 -9 -9 ------------- Run | Yrd Mat Mat Min Turns Passed 1855 | 348 266 1096 145 Spaces Moved 799 | 114 246 359 80 Core 70 | 41 . 29 . Treads . | . . . . Legs . | . . . . Wheels 729 | 73 246 330 80 Hover . | . . . . Flight . | . . . . Fastest Speed 50 | 50 80 95 155 Average Speed 165 | 69 81 256 155 Slowest Speed 1700 | 80 95 1700 155 Overloaded Moves . | . . . . Propulsion Burnouts . | . . . . Robots Hopped . | . . . . Potential Cave-ins . | . . . . Cave-ins Triggered . | . . . . Exploration Rate (%) 22 | 8 24 31 27 Regions Visited 3 Branch Regions 1 Pre-discovered Areas . | . . . . Known Exits Taken . | . . . . Unknown Exits Taken 3 | 1 1 1 . Scrap Searched . | . . . . Spaces Dug . | . . . . Terrain Destroyed 196 | . 18 145 33 Melee . | . . . . Projectile 9 | . . 6 3 AOE 187 | . 18 139 30 Terrain Rammed . | . . . . Walls Destroyed . | . . . . Machines Disabled . | . . . . Actions | -11 -10 -9 -9 --------- Run | Yrd Mat Mat Min Total 1207 | 373 292 453 89 Wait 237 | 235 1 . 1 Move 796 | 113 245 358 80 Hop . | . . . . Pick Up 43 | 10 9 23 1 Fast Attach . | . . . . Attach 20 | 7 2 10 1 Detach 2 | 2 . . . Swap 11 | 1 3 7 . Drop 17 | . 10 7 . Fire 80 | 5 21 48 6 Melee . | . . . . Ram 1 | . 1 . . Kick . | . . . . Crush . | . . . . Escape Stasis . | . . . . Rewire . | . . . . Trap . | . . . . Miscellaneous . | . . . . Route ------- -11/Scrapyard -10/Materials -9/Materials (discovered 3 exits: [*Min x2] / [*Sto]) -9/Mines (discovered 2 exits: [*Mat] / [*Exi]) History --------- Turn | Location | Event 2 | -11/Scrapyard | Met Revision 17 109 | -11/Scrapyard | Discovered new exit (range 8) 349 | -11/Scrapyard | Entered Materials 350 | -10/Materials | Build established: Mutant 537 | -10/Materials | Discovered new exit (range 5) 615 | -10/Materials | Entered another Materials area 615 | -9/Materials | Evolved 2 slots: Power x1, Weapon x1 723 | -9/Materials | Discovered new exit (range 10) 914 | -9/Materials | Discovered new exit (range 16) 1069 | -9/Materials | Build established: Bomber 1095 | -9/Materials | Discovered new exit (range 9) 1193 | -9/Materials | Core integrity fell below 50% 1202 | -9/Materials | Lost 6 parts (2p1n3w) 1413 | -9/Materials | Build established: Mutant 1554 | -9/Materials | Core integrity fell below 20% 1711 | -9/Materials | Entered Mines 1726 | -9/Mines | Received a Rocket Launcher from a helpful Derelict 1772 | -9/Mines | Deemed a non-threat by the Exiles lab entrance 1773 | -9/Mines | Discovered new exit (range 5) 1823 | -9/Mines | Discovered new exit (range 12) 1856 | -9/Mines | Destroyed self with Rocket Launcher Last Messages --------------- 1V-6PS(g): "Would you like a rocket launcher? I know I would if I were you, so I'm going to lend you mine." 1V-6PS(g) slips back into the shadows. Acquired Rocket Launcher. System corrupted: Energy discharge (-101). System corrupted: Component data lost. "No threat detected, you may enter." EXIT=FOUND Slug penetrates Seismic Survey Station. Seismic Survey Station disabled. Med. Armor Plating destroyed. [Achievement: Let's See Who's Tougher] G-34 Mercenary destroyed. L-31 Rogue suffers critical hit (Blast). Destroyed Melee Analysis Suite. Destroyed Imp. Ion Engine. Rocket Launcher destroyed. Destroyed Rocket Launcher. [Achievement: First Step to Greatness] Map ----- +----------------------------------------------------+ | ?????????????????????????????## | | ?????????????????????????????# | | ?????????????????????????????# ## | | ?????????????????????????????## ?????# | | ???????????????????????????????# ????## | | ????????????????????????????????? ???# | | ???????????????????????????????# ??# ## | | ???????????????????????????????# ## #?# | | ????????????????????????????????# #??# # | | ?????????????????????????????????# #### #???### | | ????????????????????????????????????????# #?????? | | ????????????????????????????????#### #### #?????? | | ????????????????????????????????# ####??? | | ????????????????????????????????# ### ### ##?? | | ????????????????????????????????# #?# ??# #?? | | ???????????????????????####?????# #?# ### #?? | | ??????????????????????? #?????# #?# ## ##?? | | ??????????????????###??# #?????# ### ##??? | | ?????????????????## #?# #?????# ## ##??? | | ???????????????#?# ## #?##### #??? | | ??????????? ###;# ### """ #?## | | ???????????? = ## """ ### | | ???????????? " =% """ ## | | ????????? "" ## # # | | ????????# s ##### # | | ????????# l@ ##???#### ### | | ????????# < " ### ##???????##########?? | | ??????????? "" #??# #???????????????????? | | ?????????? """ """ #??# #??????????????????? | | ????????????? #??# #??????????????????? | | ?????????????#########??## ##??????????????????? | | ?????????????????????????#####???????????????????? | | ?????????????????????????????????????????????????? | | | | | | | | | | | | | | | | | | | | | | | | | | | | | | | | | | | +----------------------------------------------------+ Best States ------------- Heat Dissipation 28 Energy Generation 19 Energy Capacity 390 Matter Stores 300 Matter Capacity 300 Sight Range 16 Terrain Scan Density 10 Armor Coverage 225 Evasion (%) 50 Item Schematics ----------------- None Robot Schematics ------------------ None Fabricated ------------ Nothing Repaired ---------- Nothing Alien Tech Used ----------------- None Achievements -------------- Everything Is Under Control First Step to Greatness Let's See Who's Tougher Loot Pinata Oops Uninvited Guest Challenges ------------ None Game ------ Seed TechNetworkedSubcomponent Manual? 0 Play Time 00:54:35 Cumulative 0.8 hours Start 2025.05.31 @ 08:07:20 End 2025.05.31 @ 09:08:14 Sessions 1 Manual Loads 0 Difficulty Rogue Special Mode None Game No. 1 Rogue 1 Adventurer 0 Explorer 0 Win Type - Total 0 Types 0/0/0/0/0/0/0/0/0/0 Lore% 0 Gallery% 1 Achievement% 2 Wizard Run 0 Options --------- Layout 1 ASCII 0 Keyboard 0 Movement Mouse Keybinds 0 Fullscreen 1 Font 24/Smallcaps Map View 50x35 Zoom Use 0% Tactical HUD 0 Map Filters NONE Filters NONE Steam 1 RUN: 3d41c0d2-32d0-4830-9b90-f94923090308